fUSD/lending_fUSD_20241111
["ID","MTS","AMOUNT","RATE_DAILY","PERIOD"]
[342019874,1731365434729,-268.44751874,0.00013887,2]
[342019875,1731365434739,-464.84469279,0.00013887,2]
[342019876,1731365434749,-887.05254288,0.00013888,2]
[342019877,1731365434758,-799.70360628,0.00013889,2]
[342019878,1731365434768,-345.81324937,0.00013889,2]
[342019879,1731365434777,-1056.076,0.0001389,2]
[342019880,1731365434787,-345.81324937,0.00013892,2]
[342019881,1731365434797,-3372.5023,0.00013895,2]
[342019882,1731365434806,-345.81324937,0.00013895,2]
[342019883,1731365434818,-887.05254288,0.00013899,2]
[342019884,1731365434829,-799.70360628,0.00013899,2]
[342019885,1731365434838,-464.84469279,0.00014032,2]
[342019886,1731365434847,-500.0,0.00014075,2]
[342019887,1731365434857,-500.0,0.00014075,2]
[342019888,1731365434866,-500.0,0.00014075,2]
[342019889,1731365434875,-500.0,0.00014075,2]
[342019890,1731365434885,-500.0,0.00014075,2]
[342019891,1731365434894,-310.60938911,0.00014075,2]
[342019892,1731365434903,-500.0,0.00014075,2]
[342019893,1731365434913,-500.0,0.00014075,2]
[342019894,1731365434922,-250.0,0.00014075,2]
[342019895,1731365434934,-500.0,0.00014075,2]
[342019896,1731365434943,-500.0,0.00014075,2]
[342019897,1731365434953,-500.0,0.00014075,2]
[342019898,1731365434962,-500.0,0.00014075,2]
[342019899,1731365434972,-500.0,0.00014075,2]
[342019900,1731365434981,-500.0,0.00014075,2]
[342019901,1731365434991,-500.0,0.00014075,2]
[342019902,1731365435005,-500.0,0.00014075,2]
[342019903,1731365435020,-500.0,0.00014075,2]
[342019904,1731365435030,-500.0,0.00014075,2]
[342019905,1731365435039,-500.0,0.00014075,2]
[342019906,1731365435049,-500.0,0.00014075,2]
[342019907,1731365435058,-500.0,0.00014075,2]
[342019908,1731365435067,-500.0,0.00014075,2]
[342019909,1731365435077,-500.0,0.00014075,2]
[342019910,1731365435087,-500.0,0.00014075,2]
[342019911,1731365435096,-500.0,0.00014075,2]
[342019912,1731365435105,-361.69014727,0.00014075,2]
[342019914,1731365437604,-138.30985273,0.00014075,2]
[342019916,1731365437613,-500.0,0.00014075,2]
[342019917,1731365437623,-500.0,0.00014075,2]
[342019918,1731365437632,-290.32934874,0.00014075,2]
[342019919,1731365437645,-209.67065126,0.00014075,2]
[342019920,1731365437654,-620.98,0.00014075,2]
[342019921,1731365437663,-500.0,0.00014075,2]
[342019922,1731365437672,-2100.0,0.00014076,2]
[342019923,1731365437683,-464.84469279,0.00014177,2]
[342019924,1731365437692,-180.17510151,0.00014194,2]
[342019925,1731365437703,-434.81489849,0.00014194,2]
[342019926,1731365437712,-500.0,0.00014194,2]
[342019927,1731365437722,-500.0,0.00014194,2]
[342019928,1731365437731,-500.0,0.00014194,2]
[342019929,1731365437740,-154.71990998,0.00014194,2]
[342019930,1731365437751,-345.28009002,0.00014194,2]
[342019931,1731365437759,-563.0,0.00014195,2]
[342019932,1731365437768,-628.0,0.00014195,2]
[342019933,1731365437777,-814.0,0.00014195,2]
[342019934,1731365437786,-471.98133509,0.00014195,2]
[342019935,1731365437797,-3272.01866491,0.00014195,2]
[342019936,1731365437806,-1252.0,0.00014195,2]
[342019937,1731365437815,-740.255,0.00014195,2]
[342019938,1731365437824,-195.441,0.00014195,2]
[342019939,1731365437834,-150.0,0.00014195,2]
[342019940,1731365437843,-150.0,0.00014195,2]
[342019941,1731365437852,-500.0,0.00014211,2]
[342019942,1731365437860,-500.0,0.00014211,2]
[342019943,1731365437869,-568.28,0.00014211,2]
[342019944,1731365437878,-500.0,0.00014211,2]
[342019945,1731365437887,-500.0,0.00014211,2]
[342019946,1731365437896,-500.0,0.00014211,2]
[342019947,1731365437906,-512.54511782,0.00014211,2]
[342019948,1731365437915,-500.0,0.00014211,2]
[342019949,1731365437925,-500.0,0.00014211,2]
[342019950,1731365437936,-500.0,0.00014211,2]
[342019951,1731365437946,-500.0,0.00014211,2]
[342019952,1731365437956,-500.0,0.00014211,2]
[342019953,1731365437965,-500.0,0.00014211,2]
[342019954,1731365437974,-500.0,0.00014211,2]
[342019955,1731365437983,-500.0,0.00014211,2]
[342019956,1731365437993,-500.0,0.00014211,2]
[342019957,1731365438002,-500.0,0.00014211,2]
[342019958,1731365438011,-286.06447416,0.00014221,2]
[342019959,1731365438020,-161.158,0.00014273,2]
[342019960,1731365438029,-206.39,0.00014298,2]
[342019961,1731365438038,-500.0,0.00014298,2]
[342019962,1731365438047,-500.0,0.00014298,2]
[342019963,1731365438056,-500.0,0.00014299,2]
[342019964,1731365438066,-500.0,0.00014299,2]
[342019966,1731365438075,-500.0,0.00014299,2]
[342019969,1731365438085,-501.48684962,0.00014299,2]
[342019971,1731365438094,-500.0,0.00014299,2]
[342019972,1731365438103,-501.30223732,0.00014299,2]
[342019974,1731365438112,-500.0,0.00014299,2]
[342019975,1731365438122,-500.76402175,0.00014299,2]
[342019976,1731365438131,-501.22288476,0.00014299,2]
[342019977,1731365438140,-500.0,0.00014299,2]
[342019978,1731365438150,-500.0,0.00014299,2]
[342019979,1731365438159,-500.0,0.00014299,2]
[342019980,1731365438169,-329.14016175,0.00014299,2]
[342019981,1731365438178,-500.0,0.00014299,2]
[342019982,1731365438189,-500.0,0.00014299,2]
[342019983,1731365438198,-500.0,0.00014299,2]
[342019984,1731365438208,-500.0,0.00014299,2]
[342019985,1731365438217,-397.7481183,0.00014299,2]
[342019986,1731365438226,-500.0,0.00014299,2]
[342019987,1731365438239,-500.0,0.00014299,2]
[342019988,1731365438248,-500.0,0.00014299,2]
[342019989,1731365438257,-500.0,0.00014299,2]
[342019990,1731365438267,-500.0,0.00014299,2]
[342019991,1731365438277,-462.34488802,0.00014299,2]
[342019992,1731365438287,-165.51882476,0.00014299,2]
[342019993,1731365438296,-500.0,0.00014299,2]
[342019994,1731365438305,-567.99,0.00014299,2]
[342019995,1731365438315,-500.0,0.00014299,2]
[342019996,1731365438324,-500.0,0.00014299,2]
[342019997,1731365438333,-509.55212715,0.00014299,2]
[342019998,1731365438343,-500.0,0.00014299,2]
[342019999,1731365438352,-603.95665848,0.00014299,2]
[342020000,1731365438361,-500.0,0.00014299,2]
[342020001,1731365438371,-207.31586742,0.00014299,2]
[342020002,1731365438382,-98.97457314,0.00014299,2]
[342020003,1731365438391,-500.0,0.00014299,2]
[342020004,1731365438400,-500.0,0.00014299,2]
[342020005,1731365438409,-500.0,0.00014299,2]
[342020006,1731365438418,-500.0,0.00014299,2]
[342020007,1731365438427,-500.0,0.00014299,2]
[342020008,1731365438439,-500.0,0.00014299,2]
[342020009,1731365438448,-500.0,0.00014299,2]
[342020010,1731365438457,-500.0,0.00014299,2]
[342020011,1731365438467,-257.34,0.00014299,2]
[342020012,1731365438475,-60.10080665,0.00014299,2]
[342020013,1731365438512,-439.89919335,0.00014299,2]
[342020014,1731365438522,-135.40715952,0.00014299,2]
[342020015,1731365438533,-364.59284048,0.00014299,2]
[342020016,1731365438541,-310.95529764,0.00014299,2]
[342020017,1731365438553,-189.04470236,0.00014299,2]
[342020018,1731365438562,-500.0,0.00014299,2]
[342020019,1731365438572,-500.0,0.00014299,2]
[342020020,1731365438581,-232.51203139,0.00014299,2]
[342020022,1731365439818,-202.24288704,0.00014299,2]
[342020023,1731365439828,-204.00655794,0.00014299,2]
[342020024,1731365439839,-295.99344206,0.00014299,2]
[342020025,1731365439848,-500.0,0.00014299,2]
[342020026,1731365439858,-500.0,0.00014299,2]
[342020027,1731365439867,-87.89985317,0.00014299,2]
[342020028,1731365439877,-327.56762215,0.00014299,2]
[342020029,1731365439886,-500.0,0.00014299,2]
[342020030,1731365439895,-500.0,0.00014299,2]
[342020031,1731365439904,-500.0,0.00014299,2]
[342020033,1731365439914,-338.20126576,0.00014299,2]
[342020035,1731365439923,-503.68728416,0.00014299,2]
[342020037,1731365439936,-199.17467123,0.00014299,2]
[342020038,1731365439976,-345.11361697,0.00014299,2]
[342020039,1731365439985,-365.86267538,0.00014299,2]
[342020040,1731365439994,-265.25084678,0.00014299,2]
[342020041,1731365440005,-238.58375048,0.00014299,2]
[342020042,1731365440014,-503.85785824,0.00014299,2]
[342020043,1731365440023,-219.10314129,0.00014299,2]
[342020044,1731365440034,-280.89685871,0.00014299,2]
[342020045,1731365440043,-500.0,0.00014299,2]
[342020046,1731365440052,-523.96239329,0.00014299,2]
[342020047,1731365440061,-500.0,0.00014299,2]
[342020048,1731365440071,-24.000748,0.00014299,2]
[342020089,1731365442768,-500.0,0.00014211,2]
[342020090,1731365442778,-116.48282746,0.00014298,2]
[342020091,1731365442790,-205.47717254,0.00014298,2]
[342020092,1731365442799,-475.999252,0.00014299,2]
[342020093,1731365443001,-501.38738725,0.00014299,2]
[342020094,1731365443011,-500.0,0.00014299,2]
[342020095,1731365443021,-409.19779056,0.00014299,2]
[342020096,1731365443032,-90.80220944,0.00014299,2]
[342020097,1731365443042,-500.0,0.00014299,2]
[342020098,1731365443052,-270.58529562,0.00014299,2]
[342020099,1731365443064,-919.70470438,0.00014299,2]
[342020100,1731365443073,-500.0,0.00014299,2]
[342020101,1731365443082,-1000.0,0.00014299,2]
[342020102,1731365443091,-500.0,0.00014299,2]
[342020103,1731365443101,-500.0,0.00014299,2]
[342020104,1731365443111,-500.0,0.00014299,2]
[342020105,1731365443120,-500.0,0.00014299,2]
[342020106,1731365443130,-500.0,0.00014299,2]
[342020107,1731365443140,-500.0,0.00014299,2]
[342020108,1731365443149,-500.0,0.00014299,2]
[342020109,1731365443159,-500.0,0.00014299,2]
[342020110,1731365443169,-500.0,0.00014299,2]
[342020111,1731365443179,-82.33729369,0.00014299,2]
[342020113,1731365443195,-417.66270631,0.00014299,2]
[342020115,1731365443204,-500.0,0.00014299,2]
[342020116,1731365443214,-500.0,0.00014299,2]
[342020117,1731365443223,-146.96576892,0.00014299,2]
[342020118,1731365443239,-353.03423108,0.00014299,2]
[342020119,1731365443253,-500.0,0.00014299,2]
[342020121,1731365443262,-590.03,0.00014299,2]
[342020123,1731365443272,-500.0,0.00014299,2]
[342020125,1731365443281,-504.31154197,0.00014299,2]
[342020128,1731365443292,-500.0,0.00014299,2]
[342020131,1731365443302,-500.0,0.00014299,2]
[342020133,1731365443311,-500.0,0.00014299,2]
[342020136,1731365443321,-500.0,0.00014299,2]
[342020138,1731365443331,-500.0,0.00014299,2]
[342020140,1731365443340,-500.0,0.00014299,2]
[342020142,1731365443350,-500.0,0.00014299,2]
[342020144,1731365443359,-2053.53950998,0.000143,2]
[342020146,1731365443371,-5011.01938747,0.000143,2]
[342020164,1731365445712,-500.0,0.00014194,2]
[342020166,1731365445723,-500.0,0.00014211,2]
[342020169,1731365445733,-608.03,0.00014298,2]
[342020171,1731365445743,-36816.56030348,0.000143,2]
[342020173,1731365445755,-16759.86819907,0.000143,2]
[342020175,1731365445766,-464.84469279,0.00014321,2]
[342020177,1731365445776,-1000.0,0.0001439,2]
[342020179,1731365445786,-639.88,0.00014399,2]
[342020181,1731365445796,-500.0,0.00014399,2]
[342020183,1731365445807,-500.0,0.00014399,2]
[342020185,1731365445817,-500.0,0.00014399,2]
[342020187,1731365445827,-555.18940991,0.00014399,2]
[342020190,1731365445837,-500.0,0.00014399,2]
[342020192,1731365445847,-250.0,0.00014399,2]
[342020194,1731365445858,-500.0,0.00014399,2]
[342020196,1731365445868,-500.0,0.00014399,2]
[342020198,1731365445877,-500.0,0.00014399,2]
[342020200,1731365445888,-500.0,0.00014399,2]
[342020202,1731365445898,-500.0,0.00014399,2]
[342020204,1731365445908,-500.0,0.00014399,2]
[342020206,1731365445917,-500.0,0.00014399,2]
[342020208,1731365445927,-500.0,0.00014399,2]
[342020210,1731365445939,-500.0,0.00014399,2]
[342020213,1731365445949,-500.0,0.00014399,2]
[342020214,1731365445959,-500.0,0.00014399,2]
[342020215,1731365445968,-500.0,0.00014399,2]
[342020216,1731365445978,-500.0,0.00014399,2]
[342020217,1731365445988,-342.57025056,0.00014399,2]
[342020218,1731365445997,-500.0,0.00014399,2]
[342020219,1731365446006,-485.84465469,0.00014399,2]
[342020220,1731365446016,-500.0,0.00014399,2]
[342020221,1731365446026,-500.0,0.00014399,2]
[342020222,1731365446037,-500.0,0.00014399,2]
[342020223,1731365446047,-57.21995509,0.00014399,2]
[342020224,1731365446059,-442.78004491,0.00014399,2]
[342020225,1731365446070,-179.27883487,0.00014399,2]
[342020226,1731365446079,-500.0,0.00014399,2]
[342020227,1731365446089,-240.39,0.00014399,2]
[342020228,1731365446099,-226.275269,0.00014399,2]
[342020229,1731365446111,-273.724731,0.00014399,2]
[342020230,1731365446121,-500.0,0.00014399,2]
[342020231,1731365446132,-500.0,0.00014399,2]
[342020232,1731365446143,-612.23,0.00014399,2]
[342020233,1731365446154,-500.0,0.00014399,2]
[342020234,1731365446164,-500.0,0.00014399,2]
[342020235,1731365446174,-500.0,0.00014399,2]
[342020236,1731365446185,-500.0,0.00014399,2]
[342020238,1731365446195,-500.0,0.00014399,2]
[342020240,1731365446205,-82526.61180114,0.000144,2]
[342020243,1731365446357,-83919.96389886,0.000144,2]
[342020244,1731365446369,-161.242223,0.000144,2]
[342020245,1731365446380,-328.37,0.00014433,2]
[342020246,1731365446391,-464.84469279,0.00014466,2]
[342020248,1731365446401,-199.01916,0.00014473,2]
[342020250,1731365446411,-500.0,0.00014473,2]
[342020252,1731365446420,-500.0,0.00014499,2]
[342020254,1731365446430,-500.0,0.00014499,2]
[342020255,1731365446443,-436.29668811,0.00014499,2]
[342020256,1731365446609,-63.70331189,0.00014499,2]
[342020257,1731365446620,-500.0,0.00014499,2]
[342020258,1731365446630,-317.83103827,0.00014499,2]
[342020259,1731365446640,-500.0,0.00014499,2]
[342020260,1731365446651,-500.0,0.00014499,2]
[342020261,1731365446661,-500.0,0.00014499,2]
[342020262,1731365446672,-500.0,0.00014499,2]
[342020263,1731365446683,-500.0,0.00014499,2]
[342020264,1731365446694,-500.0,0.00014499,2]
[342020265,1731365446704,-500.0,0.00014499,2]
[342020266,1731365446713,-351.37042354,0.00014499,2]
[342020267,1731365446726,-285.19957646,0.00014499,2]
[342020268,1731365446736,-500.0,0.00014499,2]
[342020269,1731365446749,-500.0,0.00014499,2]
[342020270,1731365446759,-500.0,0.00014499,2]
[342020271,1731365446769,-500.0,0.00014499,2]
[342020272,1731365446779,-383.8974616,0.00014499,2]
[342020273,1731365446789,-500.0,0.00014499,2]
[342020274,1731365446799,-500.0,0.00014499,2]
[342020275,1731365446809,-500.0,0.00014499,2]
[342020276,1731365446819,-241.97410657,0.00014499,2]
[342020277,1731365446829,-500.0,0.00014499,2]
[342020278,1731365446839,-500.0,0.00014499,2]
[342020279,1731365446849,-500.0,0.00014499,2]
[342020280,1731365446860,-500.0,0.00014499,2]
[342020281,1731365446870,-574.4,0.00014499,2]
[342020282,1731365446880,-500.0,0.00014499,2]
[342020283,1731365446890,-179.19094218,0.00014499,2]
[342020284,1731365446899,-500.0,0.00014499,2]
[342020285,1731365446909,-500.0,0.00014499,2]
[342020286,1731365446920,-500.0,0.00014499,2]
[342020287,1731365446929,-500.0,0.00014499,2]
[342020288,1731365446940,-500.0,0.00014499,2]
[342020289,1731365446952,-500.0,0.00014499,2]
[342020290,1731365446962,-500.0,0.00014499,2]
[342020291,1731365446974,-500.0,0.00014499,2]
[342020292,1731365446990,-500.0,0.00014499,2]
[342020293,1731365447001,-509.19797193,0.00014499,2]
[342020294,1731365447012,-500.0,0.00014499,2]
[342020295,1731365447025,-584.98,0.00014499,2]
[342020296,1731365447037,-500.0,0.00014499,2]
[342020297,1731365447047,-500.0,0.00014499,2]
[342020298,1731365447057,-500.0,0.00014499,2]
[342020299,1731365447068,-225.74538143,0.00014499,2]
[342020300,1731365447078,-500.0,0.00014499,2]
[342020301,1731365447088,-158.021767,0.00014499,2]
[342020302,1731365447098,-500.0,0.00014499,2]
[342020303,1731365447108,-500.0,0.00014499,2]
[342020304,1731365447118,-500.0,0.00014499,2]
[342020305,1731365447127,-285.46561094,0.00014499,2]
[342020306,1731365447136,-500.0,0.00014499,2]
[342020307,1731365447150,-500.0,0.00014499,2]
[342020308,1731365447161,-1190.29,0.00014499,2]
[342020309,1731365447171,-1190.29,0.00014499,2]
[342020310,1731365447181,-1190.29,0.00014499,2]
[342020311,1731365447192,-1190.29,0.00014499,2]
[342020312,1731365447202,-1190.29,0.00014499,2]
[342020313,1731365447211,-1190.29,0.00014499,2]
[342020314,1731365447221,-1190.29,0.00014499,2]
[342020315,1731365447230,-1190.29,0.00014499,2]
[342020316,1731365447241,-1190.29,0.00014499,2]
[342020317,1731365447255,-1190.29,0.00014499,2]
[342020318,1731365447265,-600.22,0.00014499,2]
[342020319,1731365447274,-1000.0,0.00014499,2]
[342020320,1731365447284,-500.0,0.00014499,2]
[342020321,1731365447294,-500.0,0.00014499,2]
[342020322,1731365447304,-585.65,0.00014499,2]
[342020323,1731365447314,-500.0,0.00014499,2]
[342020324,1731365447327,-105.98807477,0.00014499,2]
[342020325,1731365447340,-394.01192523,0.00014499,2]
[342020326,1731365447349,-111.81087477,0.00014499,2]
[342020327,1731365447373,-530.80912523,0.00014499,2]
[342020328,1731365447382,-500.0,0.00014499,2]
[342020329,1731365447391,-309.93,0.00014499,2]
[342020330,1731365447401,-500.0,0.00014499,2]
[342020331,1731365447410,-500.0,0.00014499,2]
[342020332,1731365447420,-290.48,0.00014499,2]
[342020333,1731365447429,-500.0,0.00014499,2]
[342020334,1731365447440,-411.20137575,0.00014499,2]
[342020335,1731365447449,-500.0,0.00014499,2]
[342020336,1731365447459,-500.0,0.00014499,2]
[342020337,1731365447468,-500.0,0.00014499,2]
[342020338,1731365447477,-500.0,0.00014499,2]
[342020339,1731365447486,-500.0,0.00014499,2]
[342020340,1731365447495,-240.99763958,0.00014499,2]
[342020341,1731365499594,-2103.2236,0.00013598,2]
[342020342,1731365499615,-263.4853,0.00013598,2]
[342020343,1731365499636,-254.05,0.00013795,2]
[342020344,1731365499657,-1000.0,0.00013975,2]
[342020345,1731365499679,-223.24196422,0.00014111,2]
[342020346,1731365499700,-223.2419642,0.00014166,2]
[342020347,1731365499721,-150.0,0.00014195,2]
[342020348,1731365499743,-1065.63754928,0.00014209,2]
[342020349,1731365499765,-500.0,0.00014211,2]
[342020350,1731365499786,-223.2419642,0.00014221,2]
[342020351,1731365499807,-300.0,0.0001432,2]
[342020352,1731365499828,-16930.4149085,0.00014321,2]
[342020353,1731365499850,-500.0,0.00014399,2]
[342020354,1731365499872,-322.93800533,0.00014399,2]
[342020355,1731365499895,-500.0,0.00014399,2]
[342020356,1731365499917,-500.0,0.00014473,2]
[342020357,1731365499939,-150.0,0.00014498,2]
[342020358,1731365499960,-1000.0,0.00014499,2]
[342020359,1731365499981,-500.0,0.00014499,2]
[342020360,1731365500003,-362.26956208,0.00014499,2]
[342020361,1731365500025,-500.0,0.00014499,2]
[342020362,1731365500047,-500.0,0.00014499,2]
[342020363,1731365500070,-500.0,0.00014499,2]
[342020364,1731365500092,-329.46,0.00014499,2]
[342020365,1731365500115,-500.0,0.00014499,2]
[342020366,1731365500138,-500.0,0.00014499,2]
[342020367,1731365500160,-500.0,0.00014499,2]
[342020368,1731365500182,-500.0,0.00014499,2]
[342020369,1731365500204,-500.0,0.00014499,2]
[342020370,1731365500227,-500.0,0.00014499,2]
[342020371,1731365500251,-500.0,0.00014499,2]
[342020372,1731365500280,-234.26,0.00014499,2]
[342020373,1731365500302,-465.7,0.00014499,2]
[342020374,1731365500325,-500.0,0.00014499,2]
[342020375,1731365500347,-500.0,0.00014499,2]
[342020376,1731365500368,-500.0,0.00014499,2]
[342020377,1731365500390,-500.0,0.00014499,2]
[342020378,1731365500411,-224.42,0.00014499,2]
[342020379,1731365500435,-404.15495313,0.00014499,2]
[342020380,1731365500458,-500.0,0.00014499,2]
[342020381,1731365500481,-500.0,0.00014499,2]
[342020382,1731365500506,-167.68535539,0.00014499,2]
[342020383,1731365500528,-500.0,0.00014499,2]
[342020384,1731365500550,-500.0,0.00014499,2]
[342020385,1731365500573,-500.0,0.00014499,2]
[342020386,1731365500595,-500.0,0.00014499,2]
[342020387,1731365500618,-500.0,0.00014499,2]
[342020388,1731365500640,-500.0,0.00014499,2]
[342020389,1731365500663,-500.0,0.00014499,2]
[342020390,1731365500686,-500.0,0.00014499,2]
[342020391,1731365500708,-500.0,0.00014499,2]
[342020392,1731365500730,-165538.57487367,0.000145,2]
[342020393,1731365642694,-1357.6242,0.00013598,2]
[342020394,1731365642715,-300.0,0.00013732,2]
[342020395,1731365642737,-224.3651,0.00013733,2]
[342020396,1731365642758,-20392.7172,0.00013733,2]
[342020397,1731365642779,-150.0,0.00013741,2]
[342020398,1731365642802,-30361.7874,0.00013787,2]
[342020399,1731365642825,-172.41,0.00013793,2]
[342020400,1731365642847,-250.0,0.00013901,2]
[342020401,1731365642870,-2500.0,0.00013975,2]
[342020402,1731365642892,-6861.7849,0.00013975,2]
[342020403,1731365642914,-2871.0,0.00014069,2]
[342020404,1731365642937,-301.44413962,0.00014075,2]
[342020405,1731365642961,-215.94420761,0.00014075,2]
[342020406,1731365642982,-241.39975364,0.00014075,2]
[342020407,1731365643007,-500.0,0.00014211,2]
[342020408,1731365643030,-500.0,0.00014299,2]
[342020409,1731365643053,-500.0,0.00014399,2]
[342020410,1731365643078,-3000.0,0.000144,2]
[342020411,1731365643103,-219.58873758,0.00014411,2]
[342020412,1731365643130,-215.73203111,0.00014411,2]
[342020413,1731365643160,-500.0,0.00014499,2]
[342020414,1731365643198,-346444.14651421,0.000145,2]
[342020416,1731366017268,884.12,0.00011343,2]
[342020421,1731366282430,2126.83897589,0.00025,120]
[342020434,1731366631909,-500.0,0.00012653,2]
[342020435,1731366631919,-150.0,0.00012661,2]
[342020436,1731366631928,-1000.0,0.00012705,2]
[342020437,1731366631937,-172.3,0.00012854,2]
[342020438,1731366631947,-441.84990919,0.00012866,2]
[342020439,1731366631976,-363.84009081,0.00012866,2]
[342020440,1731366631986,-2734.38687102,0.00012951,2]
[342020441,1731366631995,-250.0,0.00013051,2]
[342020442,1731366632004,-250.0,0.00013135,2]
[342020443,1731366632013,-3888.02,0.00013135,2]
[342020444,1731366632023,-1852.42,0.00013176,2]
[342020445,1731366632032,-474.15,0.00013177,2]
[342020446,1731366632041,-3609.224,0.00013233,2]
[342020447,1731366632051,-164.56,0.00013433,2]
[342020448,1731366632060,-289.74,0.00013433,2]
[342020449,1731366632070,-1529.8,0.00013433,2]
[342020450,1731366632081,-172.3,0.00013497,2]
[342020451,1731366632090,-500.0,0.00013504,2]
[342020452,1731366632100,-500.0,0.00013504,2]
[342020453,1731366632109,-881.35935824,0.00013534,2]
[342020454,1731366632121,-118.64064176,0.00013534,2]
[342020455,1731366632130,-23900.0,0.00013535,2]
[342020456,1731366632140,-153.75,0.0001354,2]
[342020457,1731366632149,-476.78,0.00013557,2]
[342020458,1731366632159,-884.12,0.00013607,2]
[342020459,1731366632168,-3969.50407056,0.00013689,2]
[342020460,1731366632177,-150.0,0.00013698,2]
[342020461,1731366632187,-200.0,0.00013699,2]
[342020462,1731366632196,-500.0,0.00013699,2]
[342020463,1731366632205,-711.29,0.00013699,2]
[342020464,1731366632216,-150.0,0.00013699,2]
[342020465,1731366632225,-250.0,0.00013699,2]
[342020466,1731366632235,-200.0,0.000137,2]
[342020467,1731366632245,-1652.0,0.0001386,2]
[342020468,1731366632254,-150.0,0.00013906,2]
[342020469,1731366632263,-628.0,0.0001393,2]
[342020470,1731366632273,-2486.246,0.0001393,2]
[342020471,1731366632282,-12935.313,0.0001393,2]
[342020472,1731366632291,-500.0,0.00013973,2]
[342020473,1731366632301,-189.59319347,0.00013975,2]
[342020474,1731366632311,-215.62078579,0.0001399,2]
[342020475,1731366632321,-215.62078579,0.0001399,2]
[342020476,1731366632330,-500.0,0.00013999,2]
[342020477,1731366632340,-500.0,0.00013999,2]
[342020478,1731366632349,-500.0,0.00013999,2]
[342020479,1731366632359,-500.0,0.00013999,2]
[342020480,1731366632369,-500.0,0.00013999,2]
[342020481,1731366632378,-500.0,0.00013999,2]
[342020482,1731366632387,-500.0,0.00013999,2]
[342020483,1731366632397,-500.0,0.00013999,2]
[342020484,1731366632407,-518.75771981,0.00013999,2]
[342020485,1731366632416,-450.0,0.00013999,2]
[342020486,1731366632429,-631.02,0.00013999,2]
[342020487,1731366632439,-293820.80542575,0.00014,2]
[342020488,1731366632451,-17458.4356,0.00014,2]
[342020489,1731366632489,-439.147223,0.00014,2]
[342020490,1731366632501,-8874.03260004,0.00014,2]
[342020491,1731366632626,-2348.35507798,0.00014,2]
[342020492,1731366632636,-5708.33363839,0.00014,2]
[342020493,1731366632648,-157032.96599944,0.00014,2]
[342020494,1731366632719,-27395.27459274,0.00014,2]
[342020495,1731366632802,-14704.00003512,0.00014,2]
[342020587,1731366637794,-381.26787789,0.00013998,2]
[342020589,1731366637804,-500.0,0.00013999,2]
[342020592,1731366637813,-337.91658548,0.00013999,2]
[342020594,1731366637822,-95834.07303633,0.00014,2]
[342020595,1731366637833,-587.83016339,0.00014,2]
[342020596,1731366637892,-2945.379,0.00014,2]
[342020597,1731366637903,-151337.97884428,0.00014,2]
[342020598,1731366637914,-1142.78552294,0.00014,2]
[342020599,1731366637925,-527.708,0.00014,2]
[342020600,1731366637995,-1070724.00480576,0.00014,2]
[342020601,1731366638005,-728.92,0.00014075,2]
[342020602,1731366638015,-500.0,0.00014075,2]
[342020603,1731366638025,-537.90045653,0.00014075,2]
[342020604,1731366638035,-500.0,0.00014075,2]